Cogmind - Beta 13 @@@ ROGUE MODE // 2024.04.11 @ 20:38:01 Player: sick0r Result: Destroyed by as-20772 with Assembled Rifle Performance ------------- Evolutions (0) 0 Regions Visited (0) 0 Robots Destroyed (0) 0 Value Destroyed (0) 0 Prototype IDs (0) 0 Alien Tech Used (0) 0 Bonus (0) 0 TOTAL SCORE: 0 Bonus ------- None Cogmind --------- Core Integrity 0/250 Matter 160/300 Energy 137/250 System Corruption 0% Temperature Cool (0) Movement Treading (160) Location -11/Scrapyard Parts ------- > --- POWER (1) -------- Ion Engine > --- PROPULSION (2) --- Light Treads > --- UTILITY (2) ------ Small Storage Unit > --- WEAPON (2) ------- Assault Rifle > --- INVENTORY (8) ---- Aluminum Leg Wheel Compact Wheel Small Laser Peak State ------------ > --- POWER ------------ Ion Engine > --- PROPULSION ------- Aluminum Leg Aluminum Leg > --- UTILITY ---------- Small Storage Unit > --- WEAPON ----------- Small Laser Light Assault Rifle > --- INVENTORY -------- Light Treads Light Treads Wheel Compact Wheel Assault Rifle [Rating: 6] Favorites ----------- Power Ion Engine Engine Ion Engine Propulsion Aluminum Leg Treads Light Treads Leg Aluminum Leg Wheel Wheel Utility Small Storage Unit Storage Small Storage Unit Weapon Light Assault Rifle Energy Gun Small Laser Ballistic Gun Light Assault Rifle Build | -11 ------- Run | Yrd Slots Evolved . | . Power . | . Propulsion . | . Utility . | . Weapon . | . Parts Attached 12 | 12 Power 2 | 2 Engine 2 | 2 Core . | . Reactor . | . Propulsion 6 | 6 Treads 2 | 2 Leg 3 | 3 Wheel 1 | 1 Hover . | . Flight . | . Utility 1 | 1 Device . | . Storage 1 | 1 Processor . | . Hackware . | . Protection . | . Artifact . | . Weapon 3 | 3 Energy Gun 1 | 1 Energy Cannon . | . Ballistic Gun 2 | 2 Ballistic Cannon . | . Launcher . | . Special Weapon . | . Impact Weapon . | . Slashing Weapon . | . Piercing Weapon . | . Special Melee Weapon . | . Unidentified Prototypes . | . Parts Lost 4 | 4 Power 1 | 1 Propulsion 2 | 2 Utility . | . Weapon 1 | 1 Highest Loss Streak 4 | 4 To Critical Strikes . | . Average Slot Usage (%) . | . Naked Turns . | . Heaviest Build 12 | 12 Greatest Support 40 | 40 Greatest Overweight (x) 1 | 1 Average Overweight (x) . | . Largest Inventory Capacity 8 | 8 Average Capacity 7 | 7 Most Carried 7 | 7 Average Carried 5 | 5 Final Capacity 8 | 8 Final Carried 4 | 4 Class Distribution -------------------- None Dominant Class ---------------- None Resources | -11 ----------- Run | Yrd Matter Collected 198 | 198 Remotely . | . Salvage Created 29 | 29 Parts . | . Haulers Intercepted . | . Recyclers Shooed . | . Parts Field Recycled . | . Retrieved Matter . | . Parts Self-Destructed . | . Prevented . | . Kills | -11 ------- Run | Yrd Combat Hostiles Destroyed 5 | 5 Guns 5 | 5 Classes Destroyed 1 | 1 Assembled 5 | 5 Best Kill Streak 5 | 5 Combat Bots Only 5 | 5 Max Kills in Single Turn 2 | 2 Gunslinging 1 | 1 Exploded . | . Melee . | . Uniques/NPCs Destroyed . | . Combat | -11 -------- Run | Yrd Hostile Shots Fired 82 | 82 Missed 23 | 23 Damage Taken 962 | 962 Core 251 | 251 Absorbed by Shields . | . Core Remaining (%) . | . Volleys Fired 14 | 14 Largest 2 | 2 Hottest 60 | 60 Shots Fired 24 | 24 Gun 24 | 24 Cannon . | . Launcher . | . Special . | . Kinetic 20 | 20 Thermal 4 | 4 Explosive . | . Electromagnetic . | . Robot Hit Streak 3 | 3 Robot Miss Streak 3 | 3 Penetration Max . | . Secondary Targets 1 | 1 Max Gunslinging Chain 1 | 1 Shots Hit Robots 13 | 13 Core Hits 9 | 9 Critical Kills 1 | 1 Critical Parts Destroyed . | . Critical Strikes 1 | 1 Destroy 1 | 1 Melee Attacks . | . Impact . | . Slashing . | . Piercing . | . Sneak Attacks . | . Combat Hostiles . | . Follow-up Attacks . | . Damage Inflicted 172 | 172 Guns 172 | 172 Cannons . | . Explosions . | . Melee . | . Ramming . | . Kinetic 148 | 148 Thermal 24 | 24 Explosive . | . Electromagnetic . | . Impact . | . Slashing . | . Piercing . | . Highest Corruption . | . Average Corruption . | . Corruption Purged . | . Corruption Blocked . | . Overload Shots . | . Overflow Damage . | . Projectiles . | . Explosions . | . Melee . | . Knockbacks . | . Impact . | . Kinetic . | . Secondary . | . Self-Inflicted Damage . | . Shots . | . Rammed . | . Targets Rammed . | . Kicked . | . Crushed . | . Highest Temperature 20 | 20 Average Temperature 13 | 13 Received Heat Transfer . | . Siege Activations . | . Robots Corrupted . | . Combat Hostiles . | . Parts Fried . | . Impact Corruptions . | . Robots Melted . | . Combat Hostiles . | . Parts Melted . | . Heat Transferred 50 | 50 Parts Sabotaged . | . Parts Stolen . | . Parts Stripped . | . Power Chain Reactions . | . Alert | -11 ------- Run | Yrd Peak Influence . | . Initial . | . Average . | . Maximum Alert Level . | . Low Security (%) 100 | 100 Level 1 . | . Level 2 . | . Level 3 . | . Level 4 . | . Level 5 . | . High Security . | . Max Security . | . Squads Dispatched . | . Investigation . | . Extermination . | . Reinforcement . | . Assault . | . Garrison . | . Intercept . | . Searches Triggered . | . Construction Impeded . | . Haulers Reinforced . | . Active Scanning Responses . | . Cargo Convoy Interrupts . | . Stealth | -11 --------- Run | Yrd Distress Signals . | . Communications Jammed . | . Distress Signals . | . Times Spotted 16 | 16 Peak Tracking Total 13 | 13 Tactical Retreats . | . Traps | -11 ------- Run | Yrd Traps Triggered . | . Indirectly . | . Trap Hack Attempts . | . Triggered . | . Disarmed . | . Reprogrammed . | . Reused . | . Traps Extracted . | . Installed . | . Triggered . | . Machines | -11 ---------- Run | Yrd Machines Disabled . | . Max in Single Turn . | . Machines Repaired . | . Machines Dismantled . | . Machines Sabotaged . | . Overloaded Fab Kills . | . Hacking | -11 --------- Run | Yrd Machines Accessed . | . Terminals . | . Fabricators . | . Repair Stations . | . Recycling Units . | . Scanalyzers . | . Garrison Access . | . Total Hacks . | . Successful . | . Failed . | . Catastrophic . | . Database Lockouts . | . Manual . | . Terminals . | . Fabricators . | . Repair Stations . | . Recycling Units . | . Scanalyzers . | . Garrison Access . | . Terminal Hacks . | . Fabricator Hacks . | . Repair Station Hacks . | . Recycling Unit Hacks . | . Scanalyzer . | . Garrison Access Hacks . | . Unauthorized Hacks . | . Terminals . | . Fabricators . | . Repair Stations . | . Recycling Units . | . Scanalyzers . | . Garrison Access . | . Data Cores Recovered . | . Used . | . Hacking Detections . | . Full Trace Events . | . Feedback Events . | . Feedback Blocked . | . Robot Schematics Acquired . | . Robots Built . | . Authchips . | . Time . | . Total Robot Build Rating . | . Part Schematics Acquired . | . Parts Built . | . Authchips . | . Time . | . Total Part Build Rating . | . Parts Repaired . | . Time . | . Parts Recycled . | . Recycled Matter . | . Retrieved Matter . | . Retrieved Components . | . Parts Scanalyzed . | . Part Schematics Acquired . | . Parts Damaged . | . Bothacking | -11 ------------ Run | Yrd Used RIF Installer . | . Robots Hacked . | . Non-combat . | . Combat . | . Robot Hacks Applied . | . Relay Couplers Released . | . Fabnet Peak Effective % . | . Robots Rewired . | . Allies Hacked . | . Hacks Repelled . | . Allies | -11 -------- Run | Yrd Total Allies . | . Largest Group . | . Highest-Rated Group . | . Highest-Rated Ally . | . Total Orders . | . Ally Attacks . | . Total Damage . | . Kills . | . Allies Corrupted . | . Allies Melted . | . Intel | -11 ------- Run | Yrd Robot Analysis Total . | . Derelict Logs Recovered . | . Drone Launches . | . Drone Recoveries . | . Exploration | -11 ------------- Run | Yrd Turns Passed 1464 | 1464 Spaces Moved 246 | 246 Core 14 | 14 Treads 4 | 4 Legs 225 | 225 Wheels 3 | 3 Hover . | . Flight . | . Fastest Speed 50 | 50 Average Speed 116 | 116 Slowest Speed 190 | 190 Overloaded Moves . | . Propulsion Burnouts . | . Robots Hopped . | . Cave-ins Triggered . | . Exploration Rate (%) 42 | 42 Regions Visited . Branch Regions . Pre-discovered Areas . | . Known Exits Taken . | . Unknown Exits Taken . | . Scrap Searched . | . Spaces Dug . | . Terrain Destroyed . | . Melee . | . Projectile . | . AOE . | . Terrain Rammed . | . Walls Destroyed . | . Machines Disabled . | . Actions | -11 --------- Run | Yrd Total 1398 | 1398 Wait 1118 | 1118 Move 246 | 246 Hop . | . Pick Up 8 | 8 Fast Attach 5 | 5 Attach 4 | 4 Detach . | . Swap 3 | 3 Drop . | . Fire 14 | 14 Melee . | . Ram . | . Kick . | . Crush . | . Escape Stasis . | . Rewire . | . Trap . | . Miscellaneous . | . Route ------- -11/Scrapyard (discovered 1 exit: [*Mat]) History --------- Turn | Location | Event 8 | -11/Scrapyard | Discovered new exit (range 15) 1400 | -11/Scrapyard | Assembled infested the area 1437 | -11/Scrapyard | Core integrity fell below 50% 1458 | -11/Scrapyard | Core integrity fell below 20% 1465 | -11/Scrapyard | Destroyed by as-20772 with Assembled Rifle Last Messages --------------- as-93827 destroyed. D-53 Grenadier knocked back. as-91804 destroyed. as-34768 destroyed. Destroyed Asb. Hover Unit. D-53 Grenadier destroyed. Aluminum Leg severed. Acquired Aluminum Leg. Knocked back. Aluminum Leg destroyed. as-98509 destroyed. as-48583 destroyed. Switching to secondary target: as-07246. as-07246 destroyed. Ion Engine destroyed. Lgt. Assault Rifle destroyed. as-72802 destroyed. as-32173 suffers critical hit (Destroy). as-32173 destroyed. Lgt. Treads destroyed. Map ----- +----------------------------------------------------+ | | | | | | | | | | | ?????????????????????????????????????????????????? | | ?????????????????????????????????????????????????? | | ?????????????????????????????????????????????????? | | ?????????????????????????????????????????????????? | | ?????????????????????????????????????????????????? | | ?????????????????????????????????????????????????? | | ?????????????????????????????????????????????????? | | ?????????????????????????????????????????????????? | | ?????????????????????????????????????????????????? | | ?????????????????????????????????????????????????? | | ?????????????????????????????????????????????????? | | ?????????????????????????????????????????????????? | | ?????????????????????????????????????????????????? | | ?????????????????????????????????????????????????? | | ??????????????????#########??????????????????????? | | ?????????????????## # ??????????????????????? | | ?????????????????# #??????????????????????? | | ?????????????????# ####???????????????????? | | ?????????????????# # #???????????????????? | | ?????????????????# # #??????#????????????? | | ?????????????????# @# #????? ###### ?????? | | ?????????????????# %%# ###### ?????? | | ?????????????????# a a ?????? | | ?????????????????# aa # ????? | | ?############ ######## ????? | | ## ## #?????? | | # ## % % #?????? | | # ############# #?????? | | # #???????????### #?????? | | # #?????????????# #?????? | | # #?????????????# #?????? | | ####### ################### * #?????? | | ?????# !%=%% #?????? | | ?????# !] * #?????? | | ?????# ###### ############### ########?????? | | ?????# #????????????# #????????????? | | ###### # # #??########### ###########??? | | # # #??# # # #??? | | # #??# # # #??? | | # ###########??# # # #??? | | # ## #??????# # # #??? | | # ## #??????# # # #??? | | # ## #??????# #??? | | # ## #??????# # # #??? | | # ## #??????# # # #??? | +----------------------------------------------------+ Best States ------------- Heat Dissipation 25 Energy Generation 10 Energy Capacity 250 Matter Stores 228 Matter Capacity 300 Sight Range 16 Terrain Scan Density 10 Evasion (%) 55 Recoil Reduction 2 Item Schematics ----------------- None Robot Schematics ------------------ None Fabricated ------------ Nothing Alien Tech Used ----------------- None Achievements -------------- None Challenges ------------ None Game ------ Seed SapperDynamicReconfigurator Manual? 0 Play Time 00:08:04 Cumulative 11.0 hours Start 2024.04.11 @ 20:30:07 End 2024.04.11 @ 20:38:01 Sessions 0 Manual Loads 0 Difficulty Rogue Special Mode None Game No. 13 Rogue 13 Adventurer 0 Explorer 0 Win Type - Total 0 Types 0/0/0/0/0/0/0/0/0 Lore% 3 Gallery% 14 Achievement% 100 Wizard Run 0 Options --------- Layout 1 ASCII 0 Keyboard 0 Movement Mouse Keybinds 0 Fullscreen 1 Font 24/Smallcaps Map View 50x35 Zoom Use 0% Tactical HUD 0 Map Filters NONE Filters NONE Steam 1 RUN: d31d3584-0d67-4e7b-ad23-c0575c819c4a